fUST/lending_fUST_20250525
["ID","MTS","AMOUNT","RATE_DAILY","PERIOD"]
[362303057,1748176248896,-427.20467183,0.00019452,2]
[362303058,1748176248905,-430.0,0.00019452,2]
[362303061,1748176248915,-513.2221892,0.00019452,2]
[362303062,1748176248924,-430.0,0.00019452,2]
[362303064,1748176248934,-504.88781249,0.00019452,2]
[362303066,1748176248943,-430.0,0.00019452,2]
[362303068,1748176248952,-430.0,0.00019452,2]
[362303071,1748176248963,-430.0,0.00019452,2]
[362303073,1748176248973,-376.36815462,0.00019452,2]
[362303075,1748176248983,-430.0,0.00019452,2]
[362303077,1748176248993,-480.38681776,0.00019452,2]
[362303078,1748176249002,-430.0,0.00019452,2]
[362303080,1748176249011,-227.42402223,0.00019452,2]
[362303082,1748176249021,-430.0,0.00019452,2]
[362303084,1748176249030,-430.0,0.00019452,2]
[362303086,1748176249039,-400.0,0.00019452,2]
[362303088,1748176249049,-430.0,0.00019452,2]
[362303090,1748176249058,-430.0,0.00019452,2]
[362303092,1748176249068,-430.0,0.00019452,2]
[362303094,1748176249077,-371.08733798,0.00019452,2]
[362303096,1748176249087,-431.55264364,0.00019452,2]
[362303098,1748176249097,-430.0,0.00019452,2]
[362303100,1748176249110,-407.09814609,0.00019452,2]
[362303102,1748176249120,-165.20820215,0.00019452,2]
[362303104,1748176249129,-430.0,0.00019452,2]
[362303106,1748176249139,-430.0,0.00019452,2]
[362303108,1748176249150,-430.0,0.00019452,2]
[362303110,1748176249161,-433.56,0.00019452,2]
[362303112,1748176249170,-430.0,0.00019452,2]
[362303114,1748176249181,-430.0,0.00019452,2]
[362303116,1748176249191,-483.22364276,0.00019452,2]
[362303118,1748176249200,-321.85658622,0.00019452,2]
[362303121,1748176249210,-430.0,0.00019452,2]
[362303122,1748176249220,-430.0,0.00019452,2]
[362303125,1748176249230,-430.0,0.00019452,2]
[362303127,1748176249239,-426.50301804,0.00019452,2]
[362303129,1748176249249,-430.0,0.00019452,2]
[362303131,1748176249259,-430.0,0.00019452,2]
[362303133,1748176249269,-430.0,0.00019452,2]
[362303135,1748176249279,-430.0,0.00019452,2]
[362303137,1748176249288,-430.0,0.00019452,2]
[362303139,1748176249297,-430.0,0.00019452,2]
[362303141,1748176249307,-430.0,0.00019452,2]
[362303143,1748176249316,-430.0,0.00019452,2]
[362303145,1748176249326,-430.0,0.00019452,2]
[362303147,1748176249335,-430.0,0.00019452,2]
[362303149,1748176249344,-430.0,0.00019452,2]
[362303151,1748176249354,-408.84960038,0.00019452,2]
[362303153,1748176249363,-430.0,0.00019452,2]
[362303155,1748176249373,-430.0,0.00019452,2]
[362303157,1748176249382,-430.0,0.00019452,2]
[362303159,1748176249391,-430.0,0.00019452,2]
[362303160,1748176249401,-430.0,0.00019452,2]
[362303162,1748176249411,-430.0,0.00019452,2]
[362303164,1748176249421,-557.2248447,0.00019452,2]
[362303166,1748176249431,-413.34221514,0.00019452,2]
[362303168,1748176249441,-430.0,0.00019452,2]
[362303170,1748176249450,-430.0,0.00019452,2]
[362303172,1748176249460,-430.0,0.00019452,2]
[362303174,1748176249469,-430.0,0.00019452,2]
[362303176,1748176249479,-443.85118614,0.00019452,2]
[362303178,1748176249489,-430.0,0.00019452,2]
[362303180,1748176249498,-430.0,0.00019452,2]
[362303182,1748176249508,-430.0,0.00019452,2]
[362303184,1748176249517,-430.0,0.00019452,2]
[362303186,1748176249527,-430.0,0.00019452,2]
[362303188,1748176249536,-430.0,0.00019452,2]
[362303190,1748176249546,-1128.76,0.00019452,2]
[362303192,1748176249557,-430.0,0.00019452,2]
[362303195,1748176249567,-330.378766,0.00019452,2]
[362303197,1748176249576,-430.0,0.00019452,2]
[362303199,1748176249586,-728.4,0.00019452,2]
[362303201,1748176249595,-539.5018515,0.00019452,2]
[362303203,1748176249605,-430.0,0.00019452,2]
[362303217,1748176249718,-199.35191954,0.00019452,2]
[362303219,1748176249740,-430.0,0.00019452,2]
[362303221,1748176249749,-408.88924348,0.00019452,2]
[362303223,1748176249758,-574.7324131,0.00019452,2]
[362303225,1748176249767,-430.0,0.00019452,2]
[362303227,1748176249776,-352.68869204,0.00019452,2]
[362303229,1748176249785,-430.0,0.00019452,2]
[362303231,1748176249795,-260.0,0.00019452,2]
[362303233,1748176249804,-430.0,0.00019452,2]
[362303235,1748176249814,-430.0,0.00019452,2]
[362303237,1748176249823,-430.0,0.00019452,2]
[362303239,1748176249832,-475.25336373,0.00019452,2]
[362303241,1748176249842,-430.0,0.00019452,2]
[362303243,1748176249851,-430.0,0.00019452,2]
[362303245,1748176249861,-430.0,0.00019452,2]
[362303247,1748176249870,-430.0,0.00019452,2]
[362303249,1748176249880,-430.0,0.00019452,2]
[362303251,1748176249892,-408.77393546,0.00019452,2]
[362303252,1748176249902,-392.67034022,0.00019452,2]
[362303254,1748176249911,-430.0,0.00019452,2]
[362303256,1748176249920,-430.0,0.00019452,2]
[362303258,1748176249930,-476.87134706,0.00019452,2]
[362303260,1748176249939,-430.0,0.00019452,2]
[362303262,1748176249949,-430.0,0.00019452,2]
[362303264,1748176249958,-430.0,0.00019452,2]
[362303266,1748176249969,-430.0,0.00019452,2]
[362303268,1748176249979,-393.27734264,0.00019452,2]
[362303270,1748176249988,-430.0,0.00019452,2]
[362303272,1748176249998,-251.84700548,0.00019452,2]
[362303274,1748176250007,-430.0,0.00019452,2]
[362303276,1748176250016,-430.0,0.00019452,2]
[362303278,1748176250026,-159.89233528,0.00019452,2]
[362303280,1748176250036,-430.0,0.00019452,2]
[362303282,1748176250045,-430.0,0.00019452,2]
[362303284,1748176250055,-430.0,0.00019452,2]
[362303286,1748176250065,-430.0,0.00019452,2]
[362303288,1748176250075,-430.0,0.00019452,2]
[362303290,1748176250084,-430.0,0.00019452,2]
[362303293,1748176250094,-521.10968839,0.00019452,2]
[362303294,1748176250107,-430.0,0.00019452,2]
[362303296,1748176250116,-430.0,0.00019452,2]
[362303299,1748176250126,-430.0,0.00019452,2]
[362303301,1748176250136,-430.0,0.00019452,2]
[362303303,1748176250146,-432.63325649,0.00019452,2]
[362303305,1748176250156,-430.0,0.00019452,2]
[362303307,1748176250166,-430.0,0.00019452,2]
[362303308,1748176250176,-430.0,0.00019452,2]
[362303310,1748176250186,-371.78434495,0.00019452,2]
[362303313,1748176250197,-466.88226173,0.00019452,2]
[362303315,1748176250206,-430.0,0.00019452,2]
[362303317,1748176250215,-430.0,0.00019452,2]
[362303319,1748176250225,-741.51,0.00019452,2]
[362303321,1748176250234,-430.0,0.00019452,2]
[362303323,1748176250243,-430.0,0.00019452,2]
[362303325,1748176250253,-219.10706733,0.00019452,2]
[362303327,1748176250263,-438.96050018,0.00019452,2]
[362303329,1748176250273,-430.0,0.00019452,2]
[362303331,1748176250282,-430.0,0.00019452,2]
[362303333,1748176250292,-431.26719802,0.00019452,2]
[362303335,1748176250303,-541.27450594,0.00019452,2]
[362303336,1748176250313,-374.66777287,0.00019452,2]
[362303338,1748176250323,-202.93222746,0.00019452,2]
[362303340,1748176250332,-430.0,0.00019452,2]
[362303342,1748176250342,-426.28113671,0.00019452,2]
[362303343,1748176250352,-430.0,0.00019452,2]
[362303345,1748176250362,-430.0,0.00019452,2]
[362303347,1748176250371,-433.7011679,0.00019452,2]
[362303349,1748176250380,-430.0,0.00019452,2]
[362303351,1748176250390,-491.52842367,0.00019452,2]
[362303352,1748176250400,-430.0,0.00019452,2]
[362303354,1748176250409,-430.0,0.00019452,2]
[362303356,1748176250419,-331.59700395,0.00019452,2]
[362303358,1748176250428,-454.98,0.00019452,2]
[362303360,1748176250438,-373.50515697,0.00019452,2]
[362303361,1748176250447,-321.49134688,0.00019452,2]
[362303363,1748176250456,-430.0,0.00019452,2]
[362303365,1748176250466,-430.0,0.00019452,2]
[362303366,1748176250475,-431.41569411,0.00019452,2]
[362303368,1748176250484,-430.0,0.00019452,2]
[362303370,1748176250494,-430.0,0.00019452,2]
[362303372,1748176250503,-430.0,0.00019452,2]
[362303374,1748176250513,-430.0,0.00019452,2]
[362303376,1748176250522,-328.95259054,0.00019452,2]
[362303378,1748176250531,-554.46072495,0.00019452,2]
[362303379,1748176250540,-433.26044315,0.00019452,2]
[362303381,1748176250549,-432.14574623,0.00019452,2]
[362303383,1748176250559,-430.0,0.00019452,2]
[362303385,1748176250568,-430.0,0.00019452,2]
[362303386,1748176250578,-171.29780201,0.00019452,2]
[362303388,1748176250588,-430.0,0.00019452,2]
[362303390,1748176250597,-430.0,0.00019452,2]
[362303392,1748176250607,-273.2182719,0.00019452,2]
[362303394,1748176250617,-296.95288892,0.00019452,2]
[362303396,1748176250626,-419.33638042,0.00019452,2]
[362303397,1748176250635,-432.5229024,0.00019452,2]
[362303399,1748176250645,-432.69,0.00019452,2]
[362303401,1748176250655,-430.0,0.00019452,2]
[362303403,1748176250664,-430.0,0.00019452,2]
[362303404,1748176250674,-430.0,0.00019452,2]
[362303406,1748176250683,-430.0,0.00019452,2]
[362303408,1748176250693,-405.8,0.00019452,2]
[362303410,1748176250702,-431.84358384,0.00019452,2]
[362303412,1748176250711,-430.0,0.00019452,2]
[362303413,1748176250720,-493.00267323,0.00019452,2]
[362303415,1748176250729,-430.0,0.00019452,2]
[362303417,1748176250739,-430.0,0.00019452,2]
[362303419,1748176250748,-435.87848935,0.00019452,2]
[362303420,1748176250758,-530.64200649,0.00019452,2]
[362303422,1748176250767,-430.0,0.00019452,2]
[362303424,1748176250776,-430.0,0.00019452,2]
[362303426,1748176250786,-430.0,0.00019452,2]
[362303427,1748176250795,-430.0,0.00019452,2]
[362303429,1748176250804,-402.90912656,0.00019452,2]
[362303431,1748176250814,-430.0,0.00019452,2]
[362303433,1748176250824,-430.0,0.00019452,2]
[362303435,1748176250833,-430.0,0.00019452,2]
[362303437,1748176250842,-430.0,0.00019452,2]
[362303439,1748176250851,-430.0,0.00019452,2]
[362303441,1748176250868,-207.40333078,0.00019452,2]
[362303443,1748176250881,-430.0,0.00019452,2]
[362303445,1748176250894,-322.19649596,0.00019452,2]
[362303447,1748176250908,-430.0,0.00019452,2]
[362303449,1748176250921,-430.0,0.00019452,2]
[362303452,1748176250935,-430.0,0.00019452,2]
[362303454,1748176250949,-430.0,0.00019452,2]
[362303456,1748176250962,-430.0,0.00019452,2]
[362303458,1748176250976,-430.0,0.00019452,2]
[362303460,1748176250986,-431.63924996,0.00019452,2]
[362303462,1748176250999,-430.0,0.00019452,2]
[362303465,1748176251013,-382.83281064,0.00019452,2]
[362303467,1748176251026,-391.66293427,0.00019452,2]
[362303469,1748176251039,-437.37346849,0.00019452,2]
[362303472,1748176251053,-430.0,0.00019452,2]
[362303474,1748176251067,-430.0,0.00019452,2]
[362303476,1748176251080,-430.0,0.00019452,2]
[362303478,1748176251094,-5456.61,0.00019452,2]
[362303480,1748176251111,-434.66182497,0.00019452,2]
[362303483,1748176251124,-402.99209038,0.00019452,2]
[362303485,1748176251137,-430.0,0.00019452,2]
[362303487,1748176251151,-430.0,0.00019452,2]
[362303489,1748176251166,-399.32879282,0.00019452,2]
[362303492,1748176251179,-440.9568345,0.00019452,2]
[362303494,1748176251192,-430.0,0.00019452,2]
[362303496,1748176251205,-433.41417867,0.00019452,2]
[362303498,1748176251218,-605.03,0.00019452,2]
[362303500,1748176251234,-373.50827607,0.00019452,2]
[362303502,1748176251245,-288.2359474,0.00019452,2]
[362303504,1748176251256,-430.0,0.00019452,2]
[362303506,1748176251268,-430.0,0.00019452,2]
[362303508,1748176251282,-430.0,0.00019452,2]
[362303510,1748176251292,-430.0,0.00019452,2]
[362303512,1748176251303,-430.0,0.00019452,2]
[362303514,1748176251316,-373.04480341,0.00019452,2]
[362303516,1748176251329,-430.0,0.00019452,2]
[362303519,1748176251341,-430.0,0.00019452,2]
[362303521,1748176251353,-430.0,0.00019452,2]
[362303523,1748176251366,-430.0,0.00019452,2]
[362303525,1748176251379,-430.0,0.00019452,2]
[362303527,1748176251391,-430.0,0.00019452,2]
[362303529,1748176251404,-793.61,0.00019452,2]
[362303531,1748176251415,-430.0,0.00019452,2]
[362303533,1748176251427,-430.0,0.00019452,2]
[362303535,1748176251439,-430.0,0.00019452,2]
[362303537,1748176251450,-430.0,0.00019452,2]
[362303539,1748176251461,-430.0,0.00019452,2]
[362303541,1748176251473,-430.0,0.00019452,2]
[362303543,1748176251484,-430.0,0.00019452,2]
[362303546,1748176251495,-430.0,0.00019452,2]
[362303548,1748176251507,-430.0,0.00019452,2]
[362303550,1748176251519,-430.0,0.00019452,2]
[362303552,1748176251532,-1173.34,0.00019452,2]
[362303554,1748176251543,-372.26111185,0.00019452,2]
[362303556,1748176251555,-2723.91,0.00019452,2]
[362303558,1748176251567,-430.0,0.00019452,2]
[362303560,1748176251578,-430.0,0.00019452,2]
[362303562,1748176251589,-459.76314994,0.00019452,2]
[362303564,1748176251600,-430.0,0.00019452,2]
[362303566,1748176251611,-2335.65,0.00019452,2]
[362303568,1748176251623,-401.95880687,0.00019452,2]
[362303570,1748176251635,-4947.23,0.00019452,2]
[362303573,1748176251647,-430.0,0.00019452,2]
[362303575,1748176251658,-430.0,0.00019452,2]
[362303577,1748176251669,-285.7204047,0.00019452,2]
[362303579,1748176251681,-370.0,0.00019452,2]
[362303581,1748176251692,-430.0,0.00019452,2]
[362303583,1748176251704,-430.0,0.00019452,2]
[362303585,1748176251715,-430.0,0.00019452,2]
[362303587,1748176251727,-430.0,0.00019452,2]
[362303589,1748176251739,-430.0,0.00019452,2]
[362303591,1748176251750,-1011.06913165,0.00019452,2]
[362303593,1748176251761,-430.0,0.00019452,2]
[362303595,1748176251772,-362.76763648,0.00019452,2]
[362303597,1748176251782,-430.0,0.00019452,2]
[362303599,1748176251794,-430.0,0.00019452,2]
[362303601,1748176251807,-1065.62,0.00019452,2]
[362303603,1748176251818,-430.0,0.00019452,2]
[362303605,1748176251829,-430.0,0.00019452,2]
[362303607,1748176251840,-2182.75,0.00019452,2]
[362303609,1748176251852,-430.0,0.00019452,2]
[362303611,1748176251863,-430.0,0.00019452,2]
[362303614,1748176251875,-430.0,0.00019452,2]
[362303616,1748176251885,-508.79372871,0.00019452,2]
[362303618,1748176251897,-430.0,0.00019452,2]
[362303620,1748176251907,-430.0,0.00019452,2]
[362303622,1748176251918,-525.14,0.00019452,2]
[362303624,1748176251929,-430.0,0.00019452,2]
[362303626,1748176251939,-478.04315347,0.00019452,2]
[362303628,1748176251951,-403.25999873,0.00019452,2]
[362303630,1748176251963,-430.0,0.00019452,2]
[362303632,1748176251973,-430.0,0.00019452,2]
[362303634,1748176251984,-430.0,0.00019452,2]
[362303636,1748176251995,-1251.08,0.00019452,2]
[362303638,1748176252007,-430.0,0.00019452,2]
[362303640,1748176252018,-478.94093369,0.00019452,2]
[362303642,1748176252030,-432.85568984,0.00019452,2]
[362303644,1748176252041,-430.0,0.00019452,2]
[362303646,1748176252052,-404.20793641,0.00019452,2]
[362303648,1748176252063,-430.0,0.00019452,2]
[362303650,1748176252074,-430.0,0.00019452,2]
[362303652,1748176252088,-1425.6,0.00019452,2]
[362303654,1748176252100,-430.0,0.00019452,2]
[362303656,1748176252113,-430.0,0.00019452,2]
[362303658,1748176252125,-430.0,0.00019452,2]
[362303660,1748176252137,-430.0,0.00019452,2]
[362303662,1748176252148,-430.0,0.00019452,2]
[362303664,1748176252160,-430.0,0.00019452,2]
[362303666,1748176252171,-430.0,0.00019452,2]
[362303668,1748176252184,-430.0,0.00019452,2]
[362303670,1748176252197,-2647.36,0.00019452,2]
[362303672,1748176252208,-855.31,0.00019452,2]
[362303674,1748176252220,-497.29045021,0.00019452,2]
[362303676,1748176252231,-430.0,0.00019452,2]
[362303678,1748176252243,-430.0,0.00019452,2]
[362303681,1748176252255,-542.51749488,0.00019452,2]
[362303701,1748176252467,-430.0,0.00019452,2]
[362303703,1748176252481,-830.82,0.00019452,2]
[362303705,1748176252491,-430.0,0.00019452,2]
[362303707,1748176252501,-430.0,0.00019452,2]
[362303709,1748176252510,-430.0,0.00019452,2]
[362303711,1748176252519,-430.0,0.00019452,2]
[362303713,1748176252529,-430.0,0.00019452,2]
[362303715,1748176252538,-430.0,0.00019452,2]
[362303717,1748176252548,-430.0,0.00019452,2]
[362303718,1748176252557,-430.0,0.00019452,2]
[362303719,1748176252566,-430.0,0.00019452,2]
[362303720,1748176252575,-663.01,0.00019452,2]
[362303721,1748176252584,-430.0,0.00019452,2]
[362303722,1748176252593,-680.39,0.00019452,2]
[362303723,1748176252602,-1177.34,0.00019452,2]
[362303724,1748176252612,-430.0,0.00019452,2]
[362303725,1748176252622,-430.0,0.00019452,2]
[362303726,1748176252630,-430.0,0.00019452,2]
[362303727,1748176252639,-430.0,0.00019452,2]
[362303728,1748176252648,-430.0,0.00019452,2]
[362303729,1748176252657,-430.0,0.00019452,2]
[362303730,1748176252666,-430.75962182,0.00019452,2]
[362303731,1748176252675,-430.0,0.00019452,2]
[362303732,1748176252685,-430.0,0.00019452,2]
[362303733,1748176252694,-412.98095555,0.00019452,2]
[362303734,1748176252704,-430.0,0.00019452,2]
[362303735,1748176252713,-400.0,0.00019452,2]
[362303736,1748176252724,-430.0,0.00019452,2]
[362303737,1748176252734,-430.0,0.00019452,2]
[362303738,1748176252743,-430.0,0.00019452,2]
[362303739,1748176252753,-430.0,0.00019452,2]
[362303740,1748176252763,-430.0,0.00019452,2]
[362303741,1748176252773,-430.0,0.00019452,2]
[362303742,1748176252782,-273.85864678,0.00019452,2]
[362303743,1748176252792,-476.0,0.00019452,2]
[362303744,1748176252802,-430.0,0.00019452,2]
[362303745,1748176252812,-430.0,0.00019452,2]
[362303746,1748176252821,-408.16708718,0.00019452,2]
[362303747,1748176252830,-430.0,0.00019452,2]
[362303749,1748176252840,-2762.56,0.00019452,2]
[362303750,1748176252849,-430.0,0.00019452,2]
[362303751,1748176252859,-408.22523127,0.00019452,2]
[362303753,1748176252868,-430.0,0.00019452,2]
[362303755,1748176252878,-430.0,0.00019452,2]
[362303757,1748176252888,-430.0,0.00019452,2]
[362303759,1748176252897,-430.0,0.00019452,2]
[362303761,1748176252907,-370.37791126,0.00019452,2]
[362303763,1748176252917,-430.0,0.00019452,2]
[362303765,1748176252926,-370.0,0.00019452,2]
[362303767,1748176252936,-430.0,0.00019452,2]
[362303769,1748176252947,-430.0,0.00019452,2]
[362303771,1748176252957,-430.0,0.00019452,2]
[362303773,1748176252966,-430.0,0.00019452,2]
[362303775,1748176252976,-430.0,0.00019452,2]
[362303777,1748176252987,-430.0,0.00019452,2]
[362303779,1748176252996,-410.31372005,0.00019452,2]
[362303781,1748176253006,-430.0,0.00019452,2]
[362303783,1748176253017,-430.0,0.00019452,2]
[362303785,1748176253027,-430.0,0.00019452,2]
[362303787,1748176253036,-430.0,0.00019452,2]
[362303789,1748176253046,-430.0,0.00019452,2]
[362303791,1748176253055,-3896.53,0.00019452,2]
[362303793,1748176253065,-374.90869319,0.00019452,2]
[362303795,1748176253075,-430.0,0.00019452,2]
[362303797,1748176253085,-435.66260534,0.00019452,2]
[362303799,1748176253096,-500.0,0.00019452,2]
[362303801,1748176253109,-674.39,0.00019452,2]
[362303803,1748176253119,-430.0,0.00019452,2]
[362303805,1748176253129,-485.16930671,0.00019452,2]
[362303807,1748176253138,-430.0,0.00019452,2]
[362303809,1748176253149,-405.80632735,0.00019452,2]
[362303811,1748176253159,-430.0,0.00019452,2]
[362303813,1748176253168,-430.0,0.00019452,2]
[362303815,1748176253178,-430.0,0.00019452,2]
[362303817,1748176253187,-430.0,0.00019452,2]
[362303819,1748176253197,-176.78142627,0.00019452,2]
[362303991,1748176254872,-151.0,0.0001683,2]
[362303993,1748176254882,-151.0,0.0001683,2]
[362303995,1748176254892,-151.0,0.0001683,2]
[362303997,1748176254902,-707.0,0.00017684,2]
[362303999,1748176254911,-1620.38985,0.00017684,2]
[362304001,1748176254923,-611.61015,0.00017684,2]
[362304003,1748176254932,-229.80965893,0.00019178,2]
[362304015,1748176255036,-1701.27645483,0.00016662,2]
[362304018,1748176255048,-277.38375,0.00016662,2]
[362304293,1748176368638,845.71736,0.00013699,2]
[362304301,1748176795159,195.56458513,0.00014078,2]
[362304303,1748176853300,860.0,0.00024658,120]
[362304304,1748176984254,165.389979,0.00014069,2]
[362304305,1748177000446,5000.0,0.000141,2]
[362304306,1748177016274,5000.0,0.000141,2]
[362304307,1748177032767,5000.0,0.000141,2]
[362304308,1748177048710,5000.0,0.000141,2]
[362304309,1748177064368,5000.0,0.000141,2]
[362304310,1748177080269,5000.0,0.000141,2]
[362304311,1748177094240,-4384.3296787,0.00014156,2]
[362304312,1748177094261,-213.54653009,0.00014808,2]
[362304313,1748177094283,-200.63546826,0.00014808,2]
[362304314,1748177094304,-238.96726049,0.00015056,2]
[362304315,1748177094328,-552.326607,0.00015084,2]
[362304316,1748177094349,-300.0,0.00015155,2]
[362304317,1748177094372,-300.0,0.00015155,2]
[362304318,1748177094394,-500.0,0.00015155,2]
[362304319,1748177094415,-538.33044401,0.00015155,2]
[362304320,1748177094439,-500.0,0.00015155,2]
[362304321,1748177094462,-500.0,0.00015155,2]
[362304322,1748177094484,-500.0,0.00015155,2]
[362304323,1748177094507,-500.0,0.00015155,2]
[362304324,1748177094530,-500.0,0.00015155,2]
[362304325,1748177094552,-500.0,0.00015155,2]
[362304326,1748177094576,-500.0,0.00015155,2]
[362304327,1748177094598,-500.0,0.00015155,2]
[362304328,1748177094620,-471.29673103,0.00015155,2]
[362304329,1748177094642,-500.0,0.00015155,2]
[362304330,1748177094664,-500.0,0.00015155,2]
[362304331,1748177094687,-500.0,0.00015155,2]
[362304332,1748177094708,-500.0,0.00015155,2]
[362304333,1748177094732,-500.0,0.00015155,2]
[362304334,1748177094754,-500.0,0.00015155,2]
[362304335,1748177094775,-466.59873211,0.00015155,2]
[362304336,1748177094799,-955.71050419,0.00015155,2]
[362304337,1748177094821,-324.83129173,0.00015155,2]
[362304338,1748177094843,-500.0,0.00015155,2]
[362304339,1748177094865,-500.0,0.00015155,2]
[362304340,1748177094889,-955.71050419,0.00015155,2]
[362304341,1748177094911,-500.0,0.00015155,2]
[362304342,1748177094934,-500.0,0.00015155,2]
[362304343,1748177094959,-500.0,0.00015155,2]
[362304344,1748177094979,-500.0,0.00015155,2]
[362304345,1748177095003,-955.71050419,0.00015155,2]
[362304346,1748177095026,-500.0,0.00015155,2]
[362304347,1748177095047,-500.0,0.00015155,2]
[362304348,1748177095069,-500.0,0.00015155,2]
[362304349,1748177095091,-500.0,0.00015155,2]
[362304350,1748177095115,-500.0,0.00015155,2]
[362304351,1748177095137,-500.0,0.00015155,2]
[362304352,1748177095159,-955.71050419,0.00015155,2]
[362304353,1748177095179,-518.18426576,0.00015155,2]
[362304354,1748177095201,-500.0,0.00015155,2]
[362304355,1748177095224,-533.9860138,0.00015155,2]
[362304356,1748177095247,-955.71050419,0.00015155,2]
[362304357,1748177095270,-500.0,0.00015155,2]
[362304358,1748177095293,-500.0,0.00015155,2]
[362304359,1748177095317,-500.0,0.00015155,2]
[362304360,1748177095345,-955.71050419,0.00015155,2]
[362304361,1748177095368,-500.0,0.00015155,2]
[362304362,1748177095392,-955.71050419,0.00015155,2]
[362304363,1748177095415,-500.0,0.00015155,2]
[362304364,1748177095437,-340.12029733,0.00015155,2]
[362304365,1748177095460,-955.71050419,0.00015155,2]
[362304366,1748177095483,-500.0,0.00015155,2]
[362304367,1748177095506,-500.0,0.00015155,2]
[362304368,1748177095529,-500.0,0.00015155,2]
[362304369,1748177095551,-500.0,0.00015155,2]
[362304370,1748177095574,-955.71050419,0.00015155,2]
[362304371,1748177095597,-500.0,0.00015155,2]
[362304372,1748177095619,-500.0,0.00015155,2]
[362304373,1748177095642,-955.71050419,0.00015155,2]
[362304374,1748177095665,-500.0,0.00015155,2]
[362304375,1748177095688,-500.0,0.00015155,2]
[362304376,1748177095712,-559.74163779,0.00015155,2]
[362304377,1748177136763,-6031.0,0.000145,2]
[362304378,1748177136785,-258.0,0.00015154,2]
[362304379,1748177136814,-300.0,0.00015154,2]
[362304380,1748177136837,-300.0,0.00015154,2]
[362304381,1748177136860,-1200.0,0.00015154,2]
[362304382,1748177136881,-300.0,0.00015154,2]
[362304383,1748177136906,-395.9688664,0.00015155,2]
[362304384,1748177136932,-500.0,0.00015155,2]
[362304385,1748177136956,-500.0,0.00015155,2]
[362304386,1748177136980,-955.71050419,0.00015155,2]
[362304387,1748177137005,-500.0,0.00015155,2]
[362304388,1748177137028,-500.0,0.00015155,2]
[362304389,1748177137052,-955.71050419,0.00015155,2]
[362304390,1748177137077,-500.0,0.00015155,2]
[362304391,1748177137100,-500.0,0.00015155,2]
[362304392,1748177137124,-955.71050419,0.00015155,2]
[362304393,1748177137147,-167.15667209,0.00015155,2]
[362304394,1748177137170,-500.0,0.00015155,2]
[362304395,1748177137194,-955.71050419,0.00015155,2]
[362304396,1748177137217,-500.0,0.00015155,2]
[362304397,1748177137239,-500.0,0.00015155,2]
[362304398,1748177137263,-955.71050419,0.00015155,2]
[362304399,1748177137286,-500.0,0.00015155,2]
[362304400,1748177137309,-955.71050419,0.00015155,2]
[362304401,1748177137332,-500.0,0.00015155,2]
[362304402,1748177137361,-955.71050419,0.00015155,2]
[362304403,1748177137385,-500.0,0.00015155,2]
[362304404,1748177137412,-500.0,0.00015155,2]
[362304405,1748177137439,-500.0,0.00015155,2]
[362304406,1748177137466,-500.0,0.00015155,2]
[362304407,1748177137493,-500.0,0.00015155,2]